bitfinex/quotes_SOLUSD_20240606
["timestamp","ask_amount","ask_price","bid_price","bid_amount"]
[1717700251803,6.58,171.25,171.24,0.2139747]
[1717700252005,8.7405,171.25,171.24,0.2139747]
[1717700252182,2.1605,171.25,171.24,0.2139747]
[1717700252381,8.7405,171.25,171.24,0.2139747]
[1717700262017,6.58,171.25,171.24,0.2139747]
[1717700262624,8.7405,171.25,171.24,0.2139747]
[1717700264697,28.4804,171.27,171.24,0.2139747]
[1717700264901,2.1604,171.26,171.24,0.2139747]
[1717700265420,6.58,171.25,171.24,0.2139747]
[1717700266325,8.7405,171.25,171.24,0.2139747]
[1717700267723,6.4803,171.29,171.24,0.2139747]
[1717700267925,6.58,171.25,171.24,0.2139747]
[1717700268227,8.7405,171.25,171.24,0.2139747]
[1717700269016,6.58,171.25,171.24,0.2139747]
[1717700270522,8.7405,171.25,171.24,0.2139747]
[1717700275714,48.1856,171.25,171.24,0.2139747]
[1717700277318,48.3556,171.25,171.24,0.2139747]
[1717700289517,2.1612,171.2,171.18,0.03633235]
[1717700289840,6.58,171.19,171.18,0.03633235]
[1717700302038,2.1611,171.21,171.18,0.03633235]
[1717700302241,6.58,171.19,171.18,0.03633235]
[1717700304562,13.59768216,171.19,171.18,0.03633235]
[1717700305639,6.58,171.19,171.18,0.03633235]
[1717700316474,13.16,171.19,171.18,0.03633235]
[1717700326968,15.3213,171.19,171.18,0.03633235]
[1717700327168,35.0613,171.19,171.18,0.03633235]
[1717700333693,39.3839,171.19,171.18,0.03633235]
[1717700335191,45.8679,171.19,171.18,0.03633235]
[1717700335494,65.8679,171.19,171.18,0.03633235]
[1717700335997,2.1616,171.17,171.15,0.3888083]
[1717700336167,6.58,171.16,171.15,0.3888083]
[1717700342280,2.1616,171.17,171.15,0.3888083]
[1717700342485,6.58,171.16,171.15,0.3888083]
[1717700343800,8.7417,171.16,171.15,0.3888083]
[1717700345208,6.58,171.16,171.15,0.3888083]
[1717700350887,28.4815,171.18,171.15,0.3888083]
[1717700351093,6.58,171.16,171.15,0.3888083]
[1717700351295,28.4815,171.18,171.15,0.3888083]
[1717700351495,6.58,171.16,171.15,0.3888083]
[1717700359218,28.4815,171.18,171.15,0.3888083]
[1717700359508,22.1614,171.19,171.15,0.3888083]
[1717700359684,6.58,171.16,171.15,0.3888083]
[1717700360617,2.1614,171.18,171.15,0.3888083]
[1717700360820,6.58,171.16,171.15,0.3888083]
[1717700386633,26.32,171.18,171.15,0.3888083]
[1717700386843,6.58,171.16,171.15,0.3888083]
[1717700400252,6.58,171.18,171.15,0.3888083]
[1717700400453,6.58,171.16,171.15,0.3888083]
[1717700409455,2.1615,171.18,171.15,0.3888083]
[1717700409657,6.58,171.16,171.15,0.3888083]
[1717700412175,22.1613,171.19,171.15,0.3888083]
[1717700412371,26.32,171.18,171.15,0.3888083]
[1717700412576,2.1609,171.22,171.15,0.3888083]
[1717700412872,2.1607,171.24,171.15,0.3888083]
[1717700413080,2.1607,171.24,171.16,6.3857]
[1717700413453,6.58,171.18,171.16,6.3857]
[1717700413856,6.58,171.17,171.16,6.3857]
[1717700414056,6.58,171.17,171.15,0.3888083]
[1717700414283,6.58,171.16,171.15,0.3888083]
[1717700414580,6.58,171.16,171.15,0.5588083]
[1717700415376,6.58,171.16,171.15,6.9225083]
[1717700416478,6.58,171.17,171.15,6.9225083]
[1717700416858,6.58,171.17,171.15,9.0843083]
[1717700417066,6.58,171.17,171.15,6.9225083]
[1717700417452,6.58,171.17,171.15,0.3888083]
[1717700417654,6.58,171.16,171.15,0.3888083]
[1717700424374,28.4814,171.18,171.15,0.3888083]
[1717700424576,6.58,171.16,171.15,0.3888083]
[1717700433709,2.1616,171.17,171.15,0.3888083]
[1717700433885,6.58,171.16,171.15,0.3888083]
[1717700436306,8.7417,171.16,171.15,0.3888083]
[1717700436705,6.58,171.16,171.15,0.3888083]
[1717700437389,8.7417,171.16,171.15,0.3888083]
[1717700438602,6.58,171.16,171.15,0.3888083]
[1717700439514,8.7417,171.16,171.15,0.3888083]
[1717700440412,6.58,171.16,171.15,0.3888083]
[1717700441812,8.7417,171.16,171.15,0.3888083]
[1717700447827,2.1617,171.16,171.15,0.3888083]
[1717700448207,8.7417,171.16,171.15,0.3888083]
[1717700450724,6.58,171.16,171.15,0.3888083]
[1717700451105,8.7417,171.16,171.15,0.3888083]
[1717700451702,8.7417,171.16,171.07,120.20503466]
[1717700452019,6.58,171.12,171.09,6.4103]
[1717700452204,6.58,171.12,171.1,2.1624]
[1717700456021,6.58,171.12,171.11,2.1623]
[1717700456533,6.58,171.12,171.1,2.1624]
[1717700458122,6.58,171.12,171.11,2.1623]
[1717700458331,6.58,171.12,171.1,2.1624]
[1717700458751,2.1617,171.16,171.1,2.1624]
[1717700458938,6.58,171.12,171.1,2.1624]
[1717700459835,6.58,171.12,171.11,2.1623]
[1717700460134,2.1617,171.16,171.11,2.1623]
[1717700460433,2.1615,171.18,171.12,2.1621]
[1717700460626,6.58,171.13,171.12,2.1621]
[1717700461326,6.58,171.13,171.1,2.1623]
[1717700461529,6.58,171.12,171.1,2.1623]
[1717700463439,6.58,171.12,171.11,2.1623]
[1717700464647,6.58,171.12,171.1,2.1623]
[1717700466339,6.58,171.12,171.07,0.20503466]
[1717700466537,6.58,171.09,171.07,2.36773466]
[1717700466843,6.58,171.1,171.07,2.36773466]
[1717700467140,19.4569,171.15,171.07,2.36773466]
[1717700467141,6.58,171.09,171.07,2.36773466]
[1717700469022,6.58,171.09,171.07,0.20503466]
[1717700469747,2.162,171.14,171.07,0.20503466]
[1717700469942,2.1619,171.15,171.07,0.20503466]
[1717700470152,6.58,171.11,171.07,0.20503466]
[1717700470364,6.58,171.11,171.07,6.69823466]
[1717700470856,2.1619,171.15,171.07,6.69823466]
[1717700471024,6.58,171.12,171.07,6.69823466]
[1717700471352,2.1619,171.15,171.07,6.69823466]
[1717700471531,6.58,171.12,171.07,6.69823466]
[1717700471731,6.58,171.12,171.08,6.6647]
[1717700472247,6.58,171.12,171.08,36.6647]
[1717700473957,6.58,171.12,171.08,38.8273]
[1717700474838,2.1619,171.14,171.08,38.8273]
[1717700475041,6.58,171.12,171.08,38.8273]
[1717700476133,6.58,171.11,171.08,38.8273]
[1717700476954,6.58,171.11,171.08,36.6647]
[1717700480963,6.58,171.1,171.08,30.0]
[1717700482247,6.58,171.11,171.07,8.87643466]
[1717700484659,6.58,171.1,171.07,8.87643466]
[1717700487167,6.58,171.11,171.07,8.87643466]
[1717700489563,6.58,171.11,171.07,6.71363466]
[1717700490973,6.58,171.11,171.07,8.87643466]
[1717700491284,2.1621,171.13,171.07,8.87643466]
[1717700491570,6.58,171.11,171.07,8.87643466]
[1717700493574,6.58,171.11,171.05,10.9061]
[1717700493776,6.58,171.11,171.07,2.1628]
[1717700493951,4.3238,171.15,171.06,2.1629]
[1717700493952,6.58,171.1,171.06,2.1629]
[1717700494456,6.58,171.11,171.06,2.1629]
[1717700494657,6.58,171.11,171.07,2.1628]
[1717700497952,6.58,171.11,171.06,2.1629]
[1717700498155,6.58,171.11,171.07,2.1628]
[1717700498975,6.58,171.09,171.06,2.1629]
[1717700500476,6.58,171.09,171.07,2.1628]
[1717700500980,6.58,171.09,171.06,2.1629]
[1717700501470,6.58,171.09,171.07,2.1628]
[1717700503676,2.1621,171.13,171.07,2.1628]
[1717700503977,6.58,171.1,171.07,2.1628]
[1717700504978,6.58,171.1,171.06,2.1629]
[1717700505161,6.58,171.09,171.06,2.1629]
[1717700506163,6.58,171.09,171.07,2.1628]
[1717700506364,6.58,171.1,171.07,2.1628]
[1717700519687,2.1621,171.13,171.07,2.1628]
[1717700519881,6.58,171.1,171.07,2.1628]
[1717700522182,2.1621,171.13,171.08,2.1627]
[1717700522383,6.58,171.1,171.07,2.1627]
[1717700523696,6.58,171.1,171.08,2.1627]
[1717700524003,6.58,171.1,171.07,2.1627]
[1717700530301,6.58,171.1,171.06,2.1629]
[1717700530484,6.58,171.09,171.06,2.1629]
[1717700530884,6.58,171.08,171.05,2.163]
[1717700531797,6.58,171.08,171.06,2.1629]
[1717700534801,6.58,171.08,171.07,2.1628]
[1717700536104,6.58,171.09,171.07,2.1628]
[1717700536319,6.58,171.09,171.08,2.1626]
[1717700537100,6.58,171.1,171.07,2.1627]
[1717700539607,6.58,171.09,171.07,2.1627]
[1717700540486,6.58,171.09,171.06,2.1629]
[1717700540687,6.58,171.09,171.07,2.1628]
[1717700542081,4.3239,171.14,171.06,2.1629]
[1717700542082,6.58,171.08,171.06,2.1629]
[1717700543611,6.58,171.08,171.07,2.1628]
[1717700544190,6.58,171.08,171.06,2.1629]
[1717700544499,6.58,171.07,171.02,120.17]
[1717700544696,6.58,171.08,171.06,2.1629]
[1717700545296,6.58,171.07,171.02,120.17]
[1717700545614,6.58,171.07,171.06,2.1629]
[1717700545912,6.58,171.07,171.05,2.163]
[1717700546098,6.58,171.06,170.99,6.6634]
[1717700546295,6.58,171.04,171.02,2.1634]
[1717700546501,6.58,171.04,171.03,2.1633]
[1717700547813,6.58,171.04,171.02,2.1634]
[1717700548108,28.4826,171.09,171.03,2.1633]
[1717700548286,6.58,171.04,171.02,2.1634]
[1717700548491,6.58,171.03,170.97,10.55608885]
[1717700548691,21.7525,170.94,170.92,8.7426]
[1717700548912,22.9598,171.01,170.92,8.7426]
[1717700549098,22.9598,171.01,170.92,8.2426]
[1717700549306,6.58,170.93,170.92,7.2426]
[1717700549817,31.7044,170.93,170.92,7.2426]
[1717700550024,2.1648,170.91,170.8,0.3888083]
[1717700550318,4.3301,170.9,170.8,0.3888083]
[1717700550614,58.1998,170.91,170.83,2.1657]
[1717700550615,22.9598,170.91,170.83,2.1657]
[1717700550814,22.9598,170.91,170.8,0.3888083]
[1717700550815,6.58,170.84,170.8,0.3888083]
[1717700550997,6.58,170.82,170.8,2.5549083]
[1717700551327,22.9598,170.91,170.8,2.5549083]
[1717700551328,2.1651,170.89,170.8,2.5549083]
[1717700551516,6.58,170.82,170.8,2.5549083]
[1717700551715,6.58,170.82,170.81,2.1661]
[1717700551920,51.4447,170.91,170.82,2.1659]
[1717700552099,6.58,170.84,170.82,2.1659]
[1717700552290,6.58,170.85,170.81,2.1661]
[1717700552495,6.58,170.84,170.81,2.1661]
[1717700552908,6.58,170.84,170.82,2.166]
[1717700553107,6.58,170.84,170.81,2.1661]
[1717700553408,6.58,170.83,170.81,2.1661]
[1717700553920,6.58,170.84,170.81,2.1661]
[1717700554099,6.58,170.85,170.82,2.1659]
[1717700554513,6.58,170.86,170.83,2.1658]
[1717700554715,6.58,170.87,170.83,2.1658]
[1717700555207,6.58,170.87,170.84,2.1657]
[1717700555412,6.58,170.87,170.85,2.1656]
[1717700555826,2.1645,170.94,170.85,2.1656]
[1717700556030,6.58,170.88,170.85,2.1656]
[1717700557023,2.1645,170.94,170.86,2.1654]
[1717700557524,6.58,170.89,170.86,2.1654]
[1717700557823,2.1645,170.94,170.86,2.1654]
[1717700557824,6.58,170.9,170.86,2.1654]
[1717700558016,6.58,170.88,170.83,0.17]
[1717700558325,6.58,170.89,170.85,2.1656]
[1717700558510,2.1646,170.93,170.85,2.1656]
[1717700558707,2.1645,170.94,170.86,2.1655]
[1717700558919,6.58,170.9,170.85,2.1656]
[1717700559108,6.58,170.9,170.84,120.0]
[1717700559423,6.58,170.9,170.85,0.17]
[1717700559625,6.58,170.9,170.85,2.3356]
[1717700560223,6.58,170.9,170.85,2.1656]
[1717700560409,2.1646,170.93,170.85,2.1656]
[1717700560612,6.58,170.92,170.86,2.1655]
[1717700560925,6.58,170.91,170.86,2.1655]
[1717700561124,6.58,170.92,170.86,2.1655]
[1717700562130,8.7446,170.93,170.86,8.7455]
[1717700562337,6.58,170.92,170.86,8.7455]
[1717700562631,6.58,170.92,170.86,2.1655]
[1717700563209,6.58,170.92,170.86,32.1655]
[1717700563406,6.58,170.92,170.87,2.1653]
[1717700563923,6.58,170.92,170.86,32.1654]
[1717700564633,8.7448,170.92,170.86,30.0]
[1717700564928,6.58,170.9,170.86,30.0]
[1717700565125,6.58,170.9,170.86,32.1654]
[1717700565326,6.58,170.91,170.86,32.1654]
[1717700566352,13.2153,170.91,170.86,32.1654]
[1717700566633,6.58,170.88,170.86,30.0]
[1717700567021,6.58,170.89,170.86,30.0]
[1717700567412,6.58,170.89,170.85,2.1655]
[1717700567413,6.58,170.9,170.85,2.1655]
[1717700567617,6.58,170.9,170.86,2.1655]
[1717700568326,6.58,170.9,170.85,2.1655]
[1717700569528,6.58,170.9,170.86,2.1655]
[1717700569833,6.58,170.9,170.86,2.1654]
[1717700570538,6.58,170.9,170.85,2.1655]
[1717700570708,6.58,170.89,170.85,2.1655]
[1717700572030,6.58,170.89,170.86,2.1655]
[1717700573733,36.3208,170.95,170.84,120.0]
[1717700574029,36.3208,170.95,170.87,2.1653]
[1717700574030,2.1646,170.93,170.87,2.1653]
[1717700574220,6.58,170.91,170.86,2.1654]
[1717700574930,2.1647,170.92,170.86,2.1654]
[1717700575231,6.58,170.91,170.86,2.1654]
[1717700576218,6.58,170.91,170.85,0.17]
[1717700576428,6.58,170.9,170.85,2.3356]
[1717700576820,6.58,170.89,170.86,2.1654]
[1717700578719,2.1648,170.92,170.86,2.1654]
[1717700578919,6.58,170.9,170.86,2.1654]
[1717700579434,6.58,170.9,170.85,2.3355]
[1717700579616,6.58,170.9,170.85,0.17]
[1717700579930,6.58,170.9,170.85,2.3355]
[1717700580125,6.58,170.89,170.85,2.3355]
[1717700580321,2.1648,170.92,170.86,2.1655]
[1717700580533,6.58,170.89,170.85,2.3355]
[1717700580716,6.58,170.88,170.85,2.1655]
[1717700581419,6.58,170.86,170.83,2.1657]
[1717700581740,6.58,170.85,170.83,2.1657]
[1717700581936,6.58,170.86,170.83,2.1657]
[1717700582241,6.58,170.86,170.84,2.1657]
[1717700583016,6.58,170.85,170.83,2.1658]
[1717700583220,6.58,170.85,170.81,2.166]
[1717700583424,6.58,170.85,170.82,2.1659]
[1717700583638,6.58,170.85,170.8,0.3888083]
[1717700583946,6.58,170.82,170.8,2.5550083]
[1717700584143,6.58,170.82,170.8,0.3888083]
[1717700584438,2.166,170.83,170.8,0.3888083]
[1717700584638,6.58,170.81,170.8,0.3888083]
[1717700585222,2.166,170.82,170.8,0.3888083]
[1717700585422,30.1116,170.81,170.8,0.3888083]
[1717700587942,14.8034,170.81,170.8,0.3888083]
[1717700588251,33.3539,170.86,170.8,0.3888083]
[1717700588447,6.58,170.81,170.8,0.3888083]
[1717700592459,2.1658,170.84,170.8,0.3888083]
[1717700592672,6.58,170.81,170.8,0.3888083]
[1717700598954,6.58,170.82,170.8,0.3888083]
[1717700599157,2.1658,170.83,170.8,0.3888083]
[1717700599357,6.58,170.81,170.8,0.3888083]
[1717700599959,2.1658,170.84,170.8,0.3888083]
[1717700600164,6.58,170.81,170.8,0.3888083]
[1717700608067,2.1659,170.83,170.8,0.3888083]
[1717700608259,6.58,170.81,170.8,0.3888083]
[1717700611168,8.7461,170.81,170.8,0.3888083]
[1717700611383,6.58,170.81,170.8,0.3888083]
[1717700614886,19.5767,170.81,170.8,0.3888083]
[1717700615065,25.7134,170.81,170.8,0.3888083]
[1717700616178,19.215,170.81,170.8,0.3888083]
[1717700617788,13.0783,170.81,170.8,0.3888083]
[1717700619265,6.4983,170.81,170.8,0.3888083]
[1717700619481,13.0783,170.81,170.8,0.3888083]
[1717700620069,8.7461,170.81,170.8,0.3888083]
[1717700623169,6.58,170.81,170.8,0.3888083]
[1717700623491,8.7461,170.81,170.8,0.3888083]
[1717700627382,6.58,170.81,170.8,0.3888083]
[1717700636104,2.1659,170.83,170.8,0.3888083]
[1717700636306,6.58,170.82,170.8,0.3888083]
[1717700637401,2.1659,170.83,170.8,0.3888083]
[1717700637600,6.58,170.82,170.8,0.3888083]
[1717700640512,2.166,170.82,170.8,0.3888083]
[1717700640702,2.1659,170.83,170.8,0.3888083]
[1717700641011,6.58,170.82,170.8,0.3888083]
[1717700644208,2.1658,170.84,170.8,0.3888083]
[1717700644600,6.58,170.82,170.8,0.3888083]
[1717700646113,8.746,170.82,170.8,0.3888083]
[1717700647191,6.58,170.81,170.8,0.3888083]
[1717700647994,6.58,170.82,170.8,0.3888083]
[1717700649315,6.58,170.81,170.8,0.3888083]
[1717700651921,8.7461,170.81,170.8,0.3888083]
[1717700652300,6.58,170.81,170.8,0.3888083]
[1717700652692,2.166,170.82,170.8,0.3888083]
[1717700652892,6.58,170.81,170.8,0.3888083]
[1717700655006,8.7461,170.81,170.8,0.3888083]
[1717700655414,25.9577,170.81,170.8,0.3888083]
[1717700655715,19.4593,170.81,170.8,0.3888083]
[1717700657010,15.1271,170.81,170.8,0.3888083]
[1717700658315,19.4593,170.81,170.8,0.3888083]
[1717700660327,34.6222,170.81,170.8,0.3888083]
[1717700664027,4.3325,170.8,170.73,0.8035403]
[1717700664421,6.58,170.74,170.73,2.9706403]
[1717700668232,6.58,170.74,170.73,0.8035403]
[1717700670421,2.1668,170.76,170.73,0.8035403]
[1717700670737,6.58,170.74,170.73,0.8035403]
[1717700672336,2.1679,170.67,170.66,0.03644306]
[1717700672720,8.7479,170.67,170.66,0.03644306]
[1717700679142,6.58,170.67,170.66,0.03644306]
[1717700679337,6.58,170.67,170.59,126.58]
[1717700679531,6.58,170.65,170.64,2.1682]
[1717700679743,2.1677,170.69,170.6,120.0]
[1717700679942,2.1677,170.69,170.6,126.58]
[1717700680143,6.58,170.67,170.6,126.58]
[1717700680562,2.1676,170.7,170.62,120.0]
[1717700680859,6.58,170.67,170.6,120.0]
[1717700681056,16.9701,170.74,170.63,126.1625]
[1717700681246,4.3341,170.74,170.63,132.7425]
[1717700681554,2.1673,170.72,170.64,6.58]
[1717700682043,6.58,170.7,170.64,6.58]
[1717700682240,2.1673,170.72,170.64,6.58]
[1717700682555,6.58,170.71,170.65,6.75]
[1717700682758,2.1673,170.72,170.66,6.1625]
[1717700682957,6.58,170.71,170.65,126.75]
[1717700683159,6.58,170.71,170.67,6.1667]
[1717700683345,2.1669,170.75,170.67,120.0]
[1717700683660,2.1668,170.76,170.68,0.17]
[1717700683970,2.1668,170.76,170.7,6.1667]
[1717700683971,6.58,170.74,170.7,6.1667]
[1717700684331,2.1668,170.76,170.7,6.1667]
[1717700684651,47.9635,170.82,170.7,6.2123]
[1717700684652,2.1666,170.77,170.7,6.2123]
[1717700684950,2.1665,170.78,170.7,6.2123]
[1717700685138,6.58,170.77,170.7,12.7923]
[1717700685345,8.7466,170.77,170.71,0.17]
[1717700685545,2.1664,170.79,170.71,6.75]
[1717700685842,6.58,170.77,170.71,6.75]
[1717700686034,4.3323,170.81,170.71,6.75]
[1717700686035,6.58,170.76,170.71,0.17]
[1717700686478,6.58,170.76,170.73,6.0084]
[1717700691165,6.58,170.77,170.73,6.0084]
[1717700691455,6.4975,170.84,170.73,6.0084]
[1717700691660,6.4975,170.84,170.73,132.5884]
[1717700691661,6.58,170.79,170.73,132.5884]
[1717700692247,6.58,170.79,170.74,6.3395]
[1717700693042,6.58,170.78,170.74,6.3395]
[1717700695460,2.1662,170.81,170.75,6.4117]
[1717700695656,6.58,170.79,170.75,6.4117]
[1717700699262,2.1662,170.81,170.74,0.17]
[1717700699445,6.58,170.79,170.74,0.34]
[1717700699763,2.1662,170.81,170.75,6.5207]
[1717700700058,2.166,170.82,170.75,6.5207]
[1717700700258,6.58,170.79,170.75,6.5207]
[1717700700558,6.58,170.79,170.75,126.5207]
[1717700702274,2.1661,170.81,170.75,126.5207]
[1717700702444,6.58,170.79,170.75,126.5207]
[1717700702642,2.166,170.82,170.75,126.5207]
[1717700702871,6.58,170.8,170.76,6.0759]
[1717700704070,6.58,170.79,170.76,6.0759]
[1717700705940,2.1659,170.83,170.76,6.0759]
[1717700706145,6.58,170.81,170.75,132.8223]
[1717700706359,6.58,170.81,170.77,6.2423]
[1717700710543,6.58,170.8,170.77,6.2423]
[1717700711264,6.58,170.79,170.75,120.0]
[1717700711455,6.58,170.79,170.75,126.5897]
[1717700713162,2.166,170.82,170.75,126.5897]
[1717700713467,6.58,170.79,170.75,126.5897]
[1717700713655,2.1659,170.83,170.75,126.5897]
[1717700713656,6.58,170.8,170.75,120.0]
[1717700713866,6.58,170.8,170.76,6.2294]
[1717700714051,2.1658,170.84,170.76,6.2294]
[1717700714052,6.58,170.81,170.76,6.2294]
[1717700714761,2.1658,170.84,170.77,6.0594]
[1717700714976,6.58,170.81,170.77,6.0594]
[1717700715449,6.58,170.82,170.78,0.17]
[1717700715648,6.58,170.82,170.78,6.2294]
[1717700716448,6.58,170.83,170.78,6.2294]
[1717700717173,6.58,170.82,170.78,6.2294]
[1717700717357,6.58,170.8,170.78,6.0594]
[1717700717984,6.58,170.81,170.78,6.0594]
[1717700718353,6.58,170.81,170.77,120.0]
[1717700718753,6.58,170.81,170.76,0.34]
[1717700718952,6.58,170.81,170.76,6.3584]
[1717700719869,6.58,170.8,170.76,6.3584]
[1717700721169,6.58,170.8,170.76,0.34]
[1717700723464,6.58,170.8,170.77,6.6174]
[1717700724057,6.58,170.81,170.77,6.6174]
[1717700727479,2.1655,170.86,170.77,13.1974]
[1717700727877,6.58,170.83,170.77,13.1974]
[1717700728863,6.58,170.83,170.77,6.6174]
[1717700729181,6.58,170.81,170.76,0.34]
[1717700729359,6.58,170.81,170.76,6.6108]
[1717700730057,6.58,170.82,170.76,6.6108]
[1717700730562,6.58,170.81,170.76,6.6108]
[1717700730773,2.1657,170.84,170.76,6.6108]
[1717700731083,6.58,170.82,170.76,6.6108]
[1717700735061,2.1656,170.85,170.76,13.1908]
[1717700735258,6.58,170.82,170.76,6.6108]
[1717700735665,6.58,170.82,170.76,13.1908]
[1717700736582,2.1656,170.85,170.76,13.1908]
[1717700736893,6.58,170.82,170.76,13.1908]
[1717700737594,6.58,170.82,170.76,6.6108]
[1717700737769,6.58,170.82,170.76,13.1908]
[1717700745182,6.58,170.8,170.76,0.34]
[1717700745390,6.58,170.8,170.75,6.9163]
[1717700745696,6.58,170.8,170.76,6.5763]
[1717700746564,6.58,170.82,170.76,13.1563]
[1717700746867,6.58,170.83,170.77,0.17]
[1717700747079,6.58,170.84,170.77,6.75]
[1717700747390,6.58,170.83,170.77,6.75]
[1717700748894,2.1655,170.86,170.79,120.0]
[1717700749076,6.58,170.85,170.79,126.58]
[1717700750602,5.58,170.85,170.79,126.58]
[1717700751482,6.58,170.85,170.79,126.58]
[1717700752596,2.1655,170.86,170.79,126.58]
[1717700752789,2.1653,170.87,170.8,0.34]
[1717700752995,6.58,170.86,170.8,6.92]
[1717700753367,2.1653,170.87,170.81,6.3541]
[1717700753571,6.58,170.85,170.81,6.3541]
[1717700756379,2.1654,170.87,170.81,126.3541]
[1717700756585,6.58,170.86,170.82,6.5297]
[1717700757080,6.58,170.86,170.83,120.0]
[1717700757280,6.58,170.88,170.83,126.5297]
[1717700757767,2.165,170.9,170.84,0.17]
[1717700757976,6.58,170.88,170.84,0.17]
[1717700758706,2.1649,170.91,170.84,0.17]
[1717700758886,6.58,170.88,170.84,0.17]
[1717700759211,6.58,170.88,170.84,6.4598]
[1717700767183,2.1649,170.91,170.84,6.4598]
[1717700767380,6.58,170.89,170.84,6.4598]
[1717700767578,6.58,170.88,170.84,6.4598]
[1717700767774,2.1648,170.92,170.84,6.4598]
[1717700768193,2.1649,170.91,170.84,6.4598]
[1717700768387,6.58,170.88,170.84,6.4598]
[1717700771194,6.58,170.87,170.84,6.4598]
[1717700772899,2.165,170.9,170.84,6.4598]
[1717700773426,6.58,170.88,170.84,6.4598]
[1717700773583,2.1649,170.91,170.84,6.4598]
[1717700774008,6.58,170.88,170.84,6.4598]
[1717700775297,6.58,170.87,170.82,0.17]
[1717700775500,30.838,170.94,170.79,6.3552]
[1717700775501,6.58,170.83,170.79,6.3552]
[1717700775683,26.32,170.91,170.77,126.3552]
[1717700775684,2.1658,170.84,170.77,126.3552]
[1717700775889,6.58,170.8,170.77,6.3552]
[1717700776100,4.3316,170.84,170.74,120.0]
[1717700776290,6.58,170.77,170.74,120.0]
[1717700776490,6.58,170.77,170.74,126.3391]
[1717700776691,6.58,170.77,170.76,30.0]
[1717700776893,8.746,170.82,170.76,30.0]
[1717700777090,6.58,170.77,170.76,30.0]
[1717700777690,6.58,170.78,170.74,126.3391]
[1717700778804,2.1659,170.83,170.75,0.17]
[1717700779017,6.58,170.79,170.75,0.34]
[1717700780015,6.58,170.8,170.75,0.34]
[1717700780188,2.1658,170.84,170.76,120.0]
[1717700780388,6.58,170.8,170.77,0.17]
[1717700781189,6.58,170.81,170.77,0.17]
[1717700781402,2.1658,170.83,170.77,0.34]
[1717700781610,6.58,170.81,170.77,0.34]
[1717700783113,2.1658,170.83,170.77,0.34]
[1717700783114,6.58,170.8,170.77,0.34]
[1717700784323,6.58,170.79,170.76,120.0]
[1717700784609,6.58,170.79,170.74,126.234]
[1717700784791,6.58,170.78,170.74,126.234]
[1717700785395,8.7461,170.82,170.74,126.234]
[1717700785699,28.4861,170.82,170.74,126.234]
[1717700786213,28.4861,170.82,170.75,0.17]
[1717700787311,2.1661,170.81,170.75,0.17]
[1717700787920,28.486,170.82,170.75,0.17]
[1717700789324,26.32,170.82,170.75,0.17]
[1717700789539,6.58,170.78,170.75,0.17]
[1717700790316,2.166,170.82,170.75,0.17]
[1717700790516,6.58,170.78,170.75,0.17]